fUSD/lending_fUSD_20240421
["ID","MTS","AMOUNT","RATE_DAILY","PERIOD"]
[323119158,1713682246457,-558.1,0.00016799,2]
[323119160,1713682246467,-558.1,0.00016799,2]
[323119162,1713682246477,-2524.345211,0.00016799,2]
[323119165,1713682246488,-2524.345211,0.00016799,2]
[323119167,1713682246498,-2524.345211,0.00016799,2]
[323119169,1713682246507,-2524.345211,0.00016799,2]
[323119171,1713682246516,-2611.46,0.00016799,2]
[323119173,1713682246526,-2611.46,0.00016799,2]
[323119175,1713682246535,-20033.46679808,0.000168,2]
[323119206,1713682246824,-624.56983749,0.000168,2]
[323119209,1713682246836,-47158.07608596,0.000168,2]
[323119211,1713682246849,-729.84447546,0.000168,2]
[323119213,1713682246860,-13557.72976,0.000168,2]
[323119216,1713682246871,-828.46681849,0.000168,2]
[323119218,1713682246884,-3150.39333094,0.000168,2]
[323119220,1713682246896,-480.16982061,0.000168,2]
[323119223,1713682246907,-547.84176427,0.000168,2]
[323119225,1713682246921,-7110.67508,0.000168,2]
[323120795,1713682271733,2830.93,0.0001611,10]
[323120805,1713682456795,154.91498734,0.000273,120]
[323120818,1713682750178,2653.99,0.0001611,10]
[323120825,1713682867663,1284.399,0.0001,2]
[323120828,1713683304851,2488.11,0.0001611,10]
[323120832,1713683316707,-223.40369859,0.00012179,2]
[323120833,1713683316728,-539.1629436,0.00012279,2]
[323120834,1713683316750,-10580.25738842,0.00012279,2]
[323120835,1713683316771,-267.38740912,0.00012279,2]
[323120836,1713683316791,-936.0,0.0001228,2]
[323120837,1713683316811,-3080.15233842,0.0001228,2]
[323120838,1713683316833,-466.47560224,0.00012385,2]
[323120839,1713683316854,-150.0,0.00012386,2]
[323120840,1713683316875,-714.29229061,0.00012487,2]
[323120841,1713683316896,-976.75723739,0.00012693,2]
[323120842,1713683316918,-732.2,0.00013136,2]
[323120843,1713683318547,223.40369858,0.00012285,2]
[323120844,1713683327798,6622.35121226,0.00014969,2]
[323120856,1713683431458,-155.0,0.00015053,2]
[323120857,1713683431468,-1588.09709085,0.00015054,2]
[323120858,1713683431480,-251.10333033,0.00015054,2]
[323120859,1713683431489,-409.94,0.00015056,2]
[323120860,1713683431498,-786.24,0.00015069,2]
[323120861,1713683431507,-178.2897166,0.00015176,2]
[323120862,1713683431681,-337.4402834,0.00015176,2]
[323120863,1713683431692,-200.0,0.0001526,2]
[323120864,1713683431702,-205.33,0.00015279,2]
[323120865,1713683431712,-162.88,0.0001535,2]
[323120866,1713683431722,-200.0,0.00015364,2]
[323120867,1713683431732,-1852.42,0.00015394,2]
[323120868,1713683431742,-732.2,0.000154,2]
[323120869,1713683431752,-180.4,0.00015633,2]
[323120870,1713683431762,-1673.28,0.00015659,2]
[323120871,1713683431772,-180.4,0.00015659,2]
[323120872,1713683431781,-180.4,0.00015685,2]
[323120873,1713683431791,-180.4,0.00015711,2]
[323120874,1713683431800,-909.83,0.00015741,2]
[323120875,1713683431809,-3080.15233842,0.00015766,2]
[323120876,1713683431819,-661.82,0.00015767,2]
[323120877,1713683431828,-413.05,0.00015841,2]
[323120878,1713683431839,-909.83,0.00015841,2]
[323120879,1713683431849,-350.33,0.00015878,2]
[323120880,1713683431861,-150.0,0.00015978,2]
[323120881,1713683431870,-418.29,0.00015978,2]
[323120882,1713683431880,-1050.78,0.00015978,2]
[323120883,1713683431891,-150.0,0.00015978,2]
[323120884,1713683431900,-153.43,0.00015978,2]
[323120885,1713683431910,-350.33,0.00015978,2]
[323120886,1713683431919,-1000.0,0.00016,2]
[323120887,1713683431929,-4853.0,0.00016,4]
[323120888,1713683431939,-155.0,0.0001611,2]
[323120889,1713683431949,-170.540184,0.00016438,2]
[323120890,1713683431959,-157.042116,0.00016597,2]
[323120891,1713683431970,-157.042116,0.00016597,2]
[323120892,1713683431980,-157.042116,0.00016597,2]
[323120893,1713683431990,-157.042116,0.00016597,2]
[323120894,1713683432001,-157.042116,0.00016597,2]
[323120895,1713683432011,-157.042116,0.00016597,2]
[323120896,1713683432021,-157.042116,0.00016597,2]
[323120897,1713683432031,-157.042116,0.00016597,2]
[323120898,1713683432041,-157.042116,0.00016597,2]
[323120899,1713683432051,-173.042116,0.00016597,2]
[323120900,1713683432060,-157.042116,0.00016598,2]
[323120901,1713683432071,-157.042116,0.00016598,2]
[323120902,1713683432081,-157.042116,0.00016598,2]
[323120903,1713683432090,-157.042116,0.00016598,2]
[323120904,1713683432100,-157.042116,0.00016598,2]
[323120905,1713683432110,-157.042116,0.00016598,2]
[323120906,1713683432120,-157.042116,0.00016598,2]
[323120907,1713683432130,-173.042116,0.00016598,2]
[323120908,1713683432141,-173.042116,0.00016598,2]
[323120909,1713683432150,-173.042116,0.00016598,2]
[323120910,1713683432161,-173.042116,0.00016598,2]
[323120911,1713683432170,-4330.90690104,0.00016637,2]
[323120912,1713683432180,-16952.22997911,0.00016638,2]
[323120913,1713683432190,-9122.99120572,0.0001664,2]
[323120914,1713683432200,-200.0,0.00016665,2]
[323120915,1713683432211,-1000.0,0.00016665,2]
[323120916,1713683432221,-500.0,0.00016665,2]
[323120917,1713683432231,-200.0,0.00016666,2]
[323120918,1713683432242,-1000.0,0.00016666,2]
[323120919,1713683432254,-1000.0,0.00016666,2]
[323120920,1713683432264,-213.408891,0.00016666,2]
[323120921,1713683432275,-500.0,0.00016666,2]
[323120922,1713683432287,-200.0,0.00016666,2]
[323120923,1713683432295,-1292.4508,0.00016695,2]
[323120924,1713683432306,-7031.25,0.00016696,2]
[323120925,1713683432316,-10000.0,0.00016697,2]
[323120926,1713683432326,-27051.4057,0.00016697,2]
[323120927,1713683432336,-696.76707133,0.00016699,2]
[323120928,1713683432347,-232.99921813,0.00016699,2]
[323120929,1713683432360,-38.35632561,0.00016699,2]
[323120930,1713683432370,-307.75437116,0.00016699,2]
[323120931,1713683432379,-206.46452976,0.00016699,2]
[323120932,1713683432389,-3349.59739565,0.00016699,2]
[323120967,1713683437448,-1798.04161024,0.00016662,2]
[323120975,1713683437502,-67.69604207,0.00016662,2]
[323120977,1713683437512,-261.83865823,0.00016699,2]
[323120986,1713683437666,-1673.0743453,0.00016699,2]
[323120987,1713683437676,-4901.8788547,0.00016771,2]
[323120988,1713683437721,-5794.81438304,0.00016771,2]
[323120989,1713683437730,-2718.34975718,0.00016776,4]
[323120990,1713683437739,-283.67482607,0.00016785,2]
[323120991,1713683437748,-153.06,0.00016785,2]
[323120992,1713683437757,-153.06,0.00016785,2]
[323120993,1713683437766,-283.67482607,0.00016787,2]
[323120994,1713683437775,-45220.1181128,0.00016787,2]
[323120995,1713683437785,-153.06,0.00016789,2]
[323120996,1713683437795,-283.67482607,0.00016789,2]
[323120997,1713683437804,-153.06,0.0001679,2]
[323120998,1713683437814,-277.14239824,0.00016793,2]
[323120999,1713683437823,-307.80053074,0.00016793,2]
[323121001,1713683437832,-1294.9396767,0.00016793,2]
[323121002,1713683437840,-532.89332388,0.00016794,2]
[323121004,1713683437850,-500.0,0.00016794,2]
[323121005,1713683437859,-1096.62,0.00016794,2]
[323121006,1713683437869,-500.0,0.00016794,2]
[323121007,1713683437878,-500.0,0.00016794,2]
[323121009,1713683437887,-153.33,0.00016794,2]
[323121010,1713683437896,-500.0,0.00016794,2]
[323121011,1713683437905,-1157.17,0.00016794,2]
[323121012,1713683437915,-880.4,0.00016794,2]
[323121013,1713683437924,-500.0,0.00016794,2]
[323121014,1713683437933,-500.0,0.00016794,2]
[323121015,1713683437943,-341.9794006,0.00016794,2]
[323121016,1713683437952,-500.0,0.00016794,2]
[323121017,1713683437961,-500.0,0.00016794,2]
[323121018,1713683437971,-500.0,0.00016794,2]
[323121020,1713683437981,-500.0,0.00016794,2]
[323121022,1713683437991,-500.0,0.00016794,2]
[323121024,1713683438000,-500.0,0.00016794,2]
[323121026,1713683438010,-48995.57069702,0.00016795,2]
[323121179,1713683439527,-269.75099589,0.00016794,2]
[323121191,1713683439633,-230.24900411,0.00016794,2]
[323121193,1713683439642,-615.99365454,0.00016795,2]
[323121200,1713683439705,-772.40616048,0.00016795,2]
[323121219,1713683439875,-671.10229479,0.00016795,2]
[323121224,1713683439911,-500.0,0.00016795,2]
[323121226,1713683439922,-465.13515,0.00016795,2]
[323121329,1713683442649,-526.88,0.00016698,2]
[323121330,1713683442661,-12.0081362,0.00016698,2]
[323121331,1713683442670,-660.1440638,0.00016795,2]
[323121332,1713683442715,-0.00639497,0.00016795,2]
[323121333,1713683442727,-1056.00812383,0.00016795,2]
[323121334,1713683442738,-435.79514135,0.00016795,2]
[323121335,1713683442760,-1320.97260279,0.00016795,2]
[323121336,1713683442771,-1698.64210043,0.00016795,2]
[323121337,1713683442920,-500.0,0.00016794,2]
[323121338,1713683442930,-18825.26739345,0.00016795,2]
[323121355,1713683650489,1250.0,0.00014,2]
[323121356,1713683724581,683.45,0.00013694,2]
[323121357,1713683844752,2332.6,0.0001611,10]
[323121360,1713684113371,192.70495298,0.00014999,2]
[323121361,1713684117420,547.0,0.00014799,2]
[323121362,1713684120967,706.34979977,0.00014999,2]
[323121363,1713684125382,156.19,0.0001491,2]
[323121364,1713684128337,155.0,0.00014999,2]
[323121365,1713684132333,155.0,0.00014999,2]
[323121366,1713684133912,155.0,0.00014999,2]
[323121367,1713684138046,242.58,0.00014764,2]
[323121368,1713684148429,155.0,0.00014999,2]
[323121369,1713684148948,155.0,0.00014999,2]
[323121370,1713684177275,543.83,0.00014826,2]
[323121371,1713684190240,170.47278864,5e-05,2]
[323121372,1713684200734,846.55,0.00014849,2]
[323121373,1713684205945,155.0,0.00014999,2]
[323121375,1713684220412,735.48,0.00013038,2]
[323121376,1713684226270,1791.4,0.00014913,2]
[323121377,1713684237751,218.26,0.00014949,2]
[323121378,1713684248034,194.03700998,0.00014963,2]
[323121379,1713684253078,194.03700996,0.00014964,2]
[323121380,1713684258018,194.03700996,0.00014964,2]
[323121381,1713684261252,361.00536059,0.00014999,2]
[323121382,1713684267674,156.29376115,0.00014964,2]
[323121383,1713684276451,155.0,0.00014999,2]
[323121384,1713684279237,361.00536059,0.00014999,2]
[323121385,1713684295289,340.96328441,0.00014964,2]
[323121398,1713684344960,155.0,0.00014999,2]
[323121399,1713684369726,2096.076,0.0001611,10]
[323121400,1713684386066,749.15781556,0.00014308,2]
[323121401,1713684394421,250.0,0.00014917,2]
[323121402,1713684419460,155.0,0.00014999,2]
[323121403,1713684450587,500.0,0.000137,2]
[323121404,1713684458676,441.05698349,0.00015,2]
[323121405,1713684468438,500.0,0.00014874,2]
[323121406,1713684483195,228.81,0.00014874,2]
[323121407,1713684541165,166.04,0.00014924,2]
[323121412,1713684626053,2856.6536,0.00014917,2]
[323121413,1713684626218,336.5582,0.00014917,2]
[323121442,1713684631657,-150.0,0.00015,2]
[323121443,1713684631667,-261.2,0.00015005,2]
[323121444,1713684631678,-4513.09273481,0.00015013,2]
[323121445,1713684631692,-1558.77100647,0.00015013,2]
[323121446,1713684631761,-698.40593279,0.00015013,2]
[323121447,1713684631773,-452.788,0.00015013,2]
[323121448,1713684631786,-2049.6076,0.00015013,2]
[323121449,1713684631830,-1292.16870759,0.00015013,2]
[323121450,1713684631839,-1559.49706357,0.00015014,2]
[323121451,1713684631871,-1520.65527485,0.00015014,2]
[323121452,1713684631881,-138.28196008,0.00015014,2]
[323121453,1713684631893,-11.71803992,0.00015014,2]
[323121454,1713684631902,-500.0,0.00015023,2]
[323121455,1713684631912,-703.91,0.00015032,2]
[323121456,1713684631921,-146.04875208,0.00015032,2]
[323121486,1713684637611,-95.22124792,0.00015032,2]
[323121488,1713684637620,-1254.68586237,0.00015055,2]
[323121489,1713684637631,-403.23413763,0.00015055,2]
[323121490,1713684637641,-155.96,0.00015171,2]
[323121491,1713684637650,-83.45586237,0.00015299,2]
[323121492,1713684637667,-72.73413763,0.00015299,2]
[323121493,1713684637676,-630.47122394,0.00015302,2]
[323121494,1713684637723,-105.00877606,0.00015302,2]
[323121495,1713684637732,-3058.89,0.00015302,2]
[323121496,1713684637742,-299.99,0.00015302,2]
[323121497,1713684637751,-177.29,0.00015465,2]
[323121498,1713684637761,-150.0,0.000155,2]
[323121499,1713684637770,-156.19,0.00015687,2]
[323121500,1713684637779,-166.2,0.00015818,2]
[323121501,1713684637788,-201.15948815,0.00015898,2]
[323121502,1713684637797,-287.91369869,0.00015898,2]
[323121503,1713684637807,-181.09543868,0.00015898,2]
[323121504,1713684637817,-155.11757151,0.00015898,2]
[323121505,1713684637826,-286.70227157,0.00015898,2]
[323121506,1713684637835,-155.26900705,0.00015898,2]
[323121507,1713684637845,-685.03404437,0.00015898,2]
[323121508,1713684637854,-155.06345147,0.00015898,2]
[323121509,1713684637863,-155.12336367,0.00015898,2]
[323121510,1713684637873,-155.22448415,0.00015898,2]
[323121511,1713684637882,-194.85542995,0.00015898,2]
[323121512,1713684637890,-167.14197404,0.00015898,2]
[323121513,1713684637899,-155.0,0.00015898,2]
[323121514,1713684637909,-155.17899434,0.00015898,2]
[323121515,1713684637918,-155.09019747,0.00015898,2]
[323121516,1713684637927,-703.23816417,0.00015898,2]
[323121517,1713684637936,-174.1601343,0.00015898,2]
[323121518,1713684637945,-155.41633434,0.00015898,2]
[323121519,1713684637955,-205.30407743,0.00015898,2]
[323121520,1713684637964,-155.15593896,0.00015898,2]
[323121521,1713684637975,-155.0,0.00015898,2]
[323121522,1713684637985,-272.97150437,0.00015899,2]
[323121523,1713684637994,-67102.05981162,0.000159,2]
[323121524,1713684638025,-6469.18827512,0.000159,2]
[323121525,1713684638036,-4096.56516886,0.000159,2]
[323121526,1713684638047,-519.54720057,0.000159,2]
[323121529,1713684638109,-57682.31404383,0.000159,2]
[323121530,1713684638120,-609.67118737,0.000159,2]
[323121531,1713684638131,-315.55574657,0.000159,2]
[323121532,1713684638142,-909.83,0.00015941,2]
[323121533,1713684638151,-909.83,0.00015941,2]
[323121534,1713684638162,-1056.57588792,0.00015999,2]
[323121535,1713684638172,-3399.34083933,0.00016,2]
[323121711,1713684639663,-495.73051646,0.00016,2]
[323121714,1713684639676,-5601.99001599,0.00016,2]
[323121739,1713684639990,-15733.60924895,0.00016,2]
[323121740,1713684640048,-4063.82863952,0.00016,2]
[323121786,1713684642650,-1330.03109,0.00016,2]
[323121787,1713684642871,-305.552031,0.00016,2]
[323121788,1713684642925,-3080.15233842,0.00015999,2]
[323121789,1713684642934,-15793.48026813,0.00016,2]
[323121790,1713684642945,-2915.0476606,0.00016,2]
[323121791,1713684643039,-1634.876216,0.00016,2]
[323121795,1713684645843,-788.55332992,0.00016,2]
[323121796,1713684645854,-795.01443946,0.00016,2]
[323121797,1713684645865,-777048.72518883,0.00016,2]
[323121798,1713684659803,194.00671124,0.00012,2]
[323121799,1713684700251,155.0,0.00014398,2]
[323121800,1713684707671,155.0,0.00014398,2]
[323121802,1713684710068,842.29655357,0.00014398,2]
[323121803,1713684718209,246.31919169,0.00014398,2]
[323121804,1713684723283,155.0,0.00015,2]
[323121806,1713684723633,155.30252456,0.00014398,2]
[323121811,1713684797334,716.17,0.00013804,2]
[323121812,1713684816094,-90.734,0.0001611,10]
[323121813,1713684816220,-4634.3,0.0001799,26]
[323121814,1713684816259,-2186.81,0.00018849,10]
[323121815,1713684816296,-266.64,0.0001957,15]
[323121816,1713684816318,-150.5,0.0001958,15]
[323121817,1713684816355,-249.52201445,0.00020548,10]
[323121818,1713684816378,-249.52201445,0.0002063,10]
[323121819,1713684816400,-249.52201445,0.00020712,10]
[323121820,1713684816424,-249.52201445,0.00020822,10]
[323121821,1713684816448,-8341.3454817,0.00020898,20]
[323121822,1713684816472,-249.52201445,0.00020904,10]
[323121823,1713684816497,-249.52201445,0.00020986,10]
[323121824,1713684816524,-249.52201445,0.00021068,10]
[323121825,1713684816549,-249.52201445,0.00021151,10]
[323121826,1713684816571,-249.52201445,0.00021233,10]
[323121827,1713684816593,-249.52201445,0.00021342,10]
[323121828,1713684816617,-249.52201445,0.00021425,10]
[323121829,1713684816640,-249.52201445,0.00021507,10]
[323121830,1713684816662,-249.52201445,0.00021589,10]
[323121831,1713684816685,-2186.81,0.00021589,10]
[323121832,1713684816709,-249.52201445,0.00021671,10]
[323121833,1713684816732,-249.52201445,0.00021753,10]
[323121834,1713684816762,-9971.35925834,0.00022,10]
[323121835,1713684816790,-500.0,0.00022001,13]
[323121836,1713684816813,-500.0,0.00022001,13]
[323121837,1713684816836,-500.0,0.00022001,13]
[323121838,1713684816857,-500.0,0.00022001,13]
[323121839,1713684816881,-500.0,0.00022001,13]
[323121840,1713684816902,-500.0,0.00022001,13]
[323121841,1713684816924,-500.0,0.00022001,13]
[323121842,1713684816947,-500.0,0.00022001,13]
[323121843,1713684816968,-500.0,0.00022001,13]
[323121844,1713684816990,-500.0,0.00022001,13]
[323121845,1713684817012,-500.0,0.00022001,13]
[323121846,1713684817037,-500.0,0.00022001,13]
[323121847,1713684817058,-500.0,0.00022001,13]
[323121848,1713684817079,-500.0,0.00022001,13]
[323121849,1713684817101,-500.0,0.00022001,13]
[323121850,1713684817125,-500.0,0.00022001,13]
[323121851,1713684817146,-500.0,0.00022001,13]
[323121852,1713684817167,-500.0,0.00022001,13]
[323121853,1713684817189,-500.0,0.00022001,13]
[323121854,1713684817212,-500.0,0.00022001,13]
[323121855,1713684817234,-500.0,0.00022001,13]
[323121856,1713684817256,-500.0,0.00022001,13]
[323121857,1713684817277,-500.0,0.00022001,13]
[323121858,1713684817301,-500.0,0.00022001,13]
[323121859,1713684817322,-500.0,0.00022001,13]
[323121860,1713684817343,-500.0,0.00022001,13]
[323121861,1713684817365,-500.0,0.00022001,13]
[323121862,1713684817388,-500.0,0.00022001,13]
[323121863,1713684817410,-500.0,0.00022001,13]
[323121864,1713684817432,-500.0,0.00022001,13]
[323121865,1713684817457,-500.0,0.00022001,13]
[323121866,1713684817480,-500.0,0.00022001,13]
[323121867,1713684817501,-500.0,0.00022001,13]
[323121868,1713684817522,-500.0,0.00022001,13]
[323121869,1713684817544,-500.0,0.00022001,13]
[323121870,1713684817566,-500.0,0.00022001,13]
[323121871,1713684817589,-500.0,0.00022001,13]
[323121872,1713684817612,-500.0,0.00022001,13]
[323121873,1713684817634,-500.0,0.00022001,13]
[323121874,1713684817655,-500.0,0.00022001,13]
[323121875,1713684817677,-500.0,0.00022001,13]
[323121876,1713684817700,-500.0,0.00022001,13]
[323121877,1713684817721,-500.0,0.00022001,13]
[323121878,1713684817931,-500.0,0.00022001,13]
[323121879,1713684817958,-500.0,0.00022001,13]
[323121880,1713684817981,-500.0,0.00022001,13]
[323121881,1713684818004,-500.0,0.00022001,13]
[323121882,1713684818029,-500.0,0.00022001,13]
[323121883,1713684818051,-500.0,0.00022001,13]
[323121884,1713684818074,-500.0,0.00022001,13]
[323121885,1713684818096,-500.0,0.00022001,13]
[323121886,1713684818119,-500.0,0.00022001,13]
[323121887,1713684818143,-500.0,0.00022001,13]
[323121888,1713684818166,-500.0,0.00022001,13]
[323121889,1713684818189,-500.0,0.00022001,13]
[323121890,1713684818211,-500.0,0.00022001,13]
[323121891,1713684818233,-500.0,0.00022001,13]
[323121892,1713684818257,-500.0,0.00022001,13]
[323121893,1713684818279,-500.0,0.00022001,13]
[323121894,1713684818300,-500.0,0.00022001,13]
[323121895,1713684818322,-222.0,0.00022001,13]
[323121896,1713684818345,-500.0,0.00022001,13]
[323121897,1713684818367,-500.0,0.00022001,13]
[323121898,1713684818389,-500.0,0.00022001,13]
[323121899,1713684818411,-500.0,0.00022001,13]
[323121900,1713684818433,-500.0,0.00022001,13]
[323121901,1713684818459,-10048.38991613,0.000222,10]
[323121902,1713684818485,-1252.90856755,0.000225,15]
[323121903,1713684818513,-13861.59407675,0.00023,12]
[323121904,1713684818544,-600.0,0.00024,25]
[323121905,1713684818568,-687.91139787,0.00024289,10]
[323121906,1713684818589,-152.0,0.00024316,10]
[323121907,1713684818612,-2186.81,0.00024329,10]
[323121908,1713684818643,-152.0,0.00024869,11]
[323121909,1713684818665,-2000.0,0.000249,16]
[323121910,1713684818690,-600.0,0.0002498,14]
[323121911,1713684818714,-1200.0,0.00025,26]
[323121912,1713684818737,-73090.48739472,0.00025,30]
[323121913,1713684818770,-1200.0,0.00026,27]
[323121914,1713684818808,-1200.0,0.00027,28]
[323121915,1713684818830,-10000.0,0.00027,20]
[323121916,1713684818855,-2186.81,0.00027068,10]
[323121917,1713684818882,-105222.1780416,0.000273,14]
[323121918,1713684818904,-4750.81757033,0.000273,14]
[323121919,1713684818962,-200.0,0.00027397,21]
[323121920,1713684818984,-211.82237875,0.00027397,21]
[323121921,1713684819018,-1000.0,0.00028,20]
[323121922,1713684819041,-1200.0,0.00028,29]
[323121923,1713684819063,-20319.42936717,0.00028,12]
[323121924,1713684819086,-5100.33885348,0.00028,10]
[323121925,1713684819109,-913.0,0.00028158,30]
[323121926,1713684819131,-913.0,0.00028358,30]
[323121927,1713684819153,-913.0,0.00028558,30]
[323121928,1713684819178,-913.0,0.00028758,30]
[323121929,1713684819206,-913.0,0.00028958,30]
[323121930,1713684819230,-1200.0,0.00029,30]
[323121931,1713684819254,-815.0,0.00029077,30]
[323121932,1713684819278,-913.0,0.00029158,30]
[323121933,1713684819301,-815.0,0.00029277,30]
[323121934,1713684819327,-913.0,0.00029358,30]
[323121935,1713684819351,-815.0,0.00029477,30]
[323121936,1713684819375,-913.0,0.00029558,30]
[323121937,1713684819398,-815.0,0.00029677,30]
[323121938,1713684819422,-913.0,0.00029758,30]
[323121939,1713684819447,-1585.224035,0.0002978,10]
[323121940,1713684819473,-1653.86065777,0.00029784,30]
[323121941,1713684819497,-1000.0,0.000298,10]
[323121942,1713684819522,-2186.81,0.00029808,10]
[323121943,1713684819546,-1000.0,0.0002982,10]
[323121944,1713684819570,-1000.0,0.0002984,10]
[323121945,1713684819593,-1000.0,0.0002986,10]
[323121946,1713684819615,-815.0,0.00029877,30]
[323121947,1713684819637,-1000.0,0.0002988,10]
[323121948,1713684819659,-1000.0,0.000299,10]
[323121949,1713684819680,-1000.0,0.0002992,10]
[323121950,1713684819704,-1000.0,0.0002994,10]
[323121951,1713684819728,-918.22126603,0.00029958,30]
[323121952,1713684819752,-1000.0,0.0002996,10]
[323121953,1713684819774,-1000.0,0.0002998,10]
[323121954,1713684819799,-50000.0,0.0003,10]
[323121955,1713684819821,-2000.0,0.0003,14]
[323121956,1713684819845,-10000.0,0.0003,12]
[323121957,1713684819869,-10000.0,0.0003,12]
[323121958,1713684819891,-10000.0,0.0003,12]
[323121959,1713684819913,-1500.0,0.0003,20]
[323121960,1713684819935,-337.60311808,0.0003,12]
[323121961,1713684819958,-1510.14487783,0.0003,10]
[323121962,1713684819980,-400.71,0.0003,10]
[323121963,1713684820003,-38948.2854234,0.0003,30]
[323121964,1713684820030,-1200.0,0.0003,31]
[323121965,1713684820054,-1020.54,0.0003,60]
[323121966,1713684820076,-793.7177829,0.0003,30]
[323121967,1713684820099,-10000.0,0.0003,20]
[323121968,1713684820125,-5128.0,0.0003,10]
[323121969,1713684820147,-29424.638905,0.0003,30]
[323121970,1713684820169,-1000.0,0.0003,11]
[323121971,1713684820194,-815.0,0.00030077,30]
[323121972,1713684820216,-815.0,0.00030277,30]
[323121973,1713684820239,-815.0,0.00030477,30]
[323121974,1713684820261,-815.0,0.00030677,30]
[323121975,1713684820283,-250.0,0.000308,30]
[323121976,1713684820305,-816.22638123,0.00030877,30]
[323121977,1713684820488,-2563.0,0.00030898,12]
[323121978,1713684820513,-50000.0,0.00031,11]
[323121979,1713684820536,-502.31471754,0.00031,14]
[323121980,1713684820559,-2000.0,0.00031,14]
[323121981,1713684820582,-1200.0,0.00031,32]
[323121982,1713684820605,-1000.0,0.00031889,10]
[323121983,1713684820630,-50000.0,0.00032,12]
[323121984,1713684820654,-1200.0,0.00032,33]
[323121985,1713684820676,-2186.81,0.00032548,10]
[323121986,1713684820702,-750.0,0.00032876,120]
[323121987,1713684820726,-750.0,0.00032876,120]
[323121988,1713684820749,-750.0,0.00032876,120]
[323121989,1713684820773,-750.0,0.00032876,120]
[323121990,1713684820797,-750.0,0.00032876,120]
[323121991,1713684820819,-750.0,0.00032876,120]
[323121992,1713684820841,-750.0,0.00032876,120]
[323121993,1713684820863,-750.0,0.00032876,120]
[323121994,1713684820886,-750.0,0.00032876,120]
[323121995,1713684820908,-750.0,0.00032876,120]
[323121996,1713684820930,-733.57908125,0.00032876,120]
[323121997,1713684820957,-350971.48723283,0.000329,30]
[323121998,1713684824827,-213.23092109,0.0002739,30]
[323121999,1713684824880,-22858.07350498,0.000329,30]
[323122000,1713684824902,-13077.04967962,0.000329,30]
[323122001,1713684824925,-50000.0,0.00033,13]
[323122002,1713684824950,-1200.0,0.00033,34]
[323122003,1713684824972,-157.38408029,0.00033,120]
[323122004,1713684824993,-514.40003324,0.00033,120]
[323122005,1713684825017,-574.0,0.00033711,20]
[323122006,1713684825045,-50000.0,0.00034,14]
[323122007,1713684825067,-706741.02067024,0.00034,15]
[323122008,1713684825090,-141980.81992854,0.00034,15]
[323122009,1713684825113,-12684.021182,0.00034,15]
[323122010,1713684828671,-105387.15384007,0.00034,15]
[323122011,1713684828693,-20538.55971092,0.00034,30]
[323122012,1713684828716,-1200.0,0.00034,35]
[323122013,1713684828738,-2000.0,0.00034,120]
[323122014,1713684828760,-153.15581044,0.00034324,31]
[323122015,1713684828781,-574.0,0.00034428,20]
[323122016,1713684828805,-150.0,0.00034548,10]
[323122017,1713684828826,-1269.354944,0.0003458,13]
[323122018,1713684828848,-1000.0,0.000346,13]
[323122019,1713684828870,-1000.0,0.0003462,14]
[323122020,1713684828891,-1000.0,0.0003464,14]
[323122021,1713684828914,-1000.0,0.0003466,14]